bitfinex/quotes_SOLUSD_20251204
["timestamp","ask_amount","ask_price","bid_price","bid_amount"]
[1764842842412,7.66345189,143.82,143.78,2.60184233]
[1764842842612,6.95345189,143.82,143.78,2.60184233]
[1764842842818,6.95345189,143.82,143.79,0.69]
[1764842843220,7.66345189,143.82,143.79,0.69]
[1764842843418,9.55529422,143.82,143.77,3.29184233]
[1764842843618,10.26529422,143.82,143.77,3.29184233]
[1764842843814,10.26529422,143.82,143.78,0.69]
[1764842844033,0.71,143.81,143.78,0.69]
[1764842844217,7.6638039,143.81,143.77,9.55717199]
[1764842844419,10.26564623,143.81,143.76,9.55769853]
[1764842844629,0.71,143.8,143.76,9.55769853]
[1764842844831,0.71,143.8,143.77,0.69]
[1764842845227,0.71,143.8,143.77,7.64549418]
[1764842846030,6.9538039,143.81,143.77,7.64549418]
[1764842846221,7.6638039,143.81,143.77,7.64549418]
[1764842846815,10.26483787,143.83,143.78,3.29184233]
[1764842847043,7.66299554,143.83,143.79,3.29184233]
[1764842847339,10.26483787,143.83,143.79,0.69]
[1764842848042,7.66299554,143.83,143.79,0.69]
[1764842848415,0.71,143.82,143.79,0.69]
[1764842849615,9.55483787,143.83,143.79,7.64455258]
[1764842849816,7.66299554,143.83,143.79,7.64455258]
[1764842850116,7.66299554,143.83,143.79,10.24639491]
[1764842850518,6.95299554,143.83,143.8,0.69]
[1764842853342,7.66299554,143.83,143.8,0.69]
[1764842853646,10.26483787,143.83,143.79,7.64455258]
[1764842854047,10.26483787,143.83,143.78,6.95490951]
[1764842854048,3.31184233,143.82,143.78,6.95490951]
[1764842854241,10.26508091,143.82,143.78,7.64490951]
[1764842854743,9.55457976,143.83,143.78,9.55675184]
[1764842854954,9.55457976,143.83,143.79,0.69]
[1764842855245,10.26457976,143.83,143.79,0.69]
[1764842856749,10.26457976,143.83,143.79,7.64433588]
[1764842856948,10.26457976,143.83,143.8,0.69]
[1764842860361,10.26457976,143.83,143.79,6.95433588]
[1764842860565,10.26457976,143.83,143.79,7.64433588]
[1764842860861,6.95120255,143.86,143.79,26.94264458]
[1764842861042,2.60184233,143.85,143.8,3.28184233]
[1764842861245,3.28184233,143.85,143.8,3.28184233]
[1764842861552,9.55304488,143.86,143.81,3.28184233]
[1764842861742,10.23304488,143.86,143.81,0.68]
[1764842861930,10.23304488,143.86,143.82,7.63286441]
[1764842864153,0.69,143.89,143.84,2.60184233]
[1764842864356,3.29184233,143.89,143.85,0.66]
[1764842864539,3.29184233,143.88,143.84,0.66]
[1764842864850,2.60184233,143.87,143.84,0.66]
[1764842865056,3.29184233,143.87,143.84,0.66]
[1764842865443,10.24284137,143.87,143.83,15.76246265]
[1764842865757,0.69,143.86,143.83,0.66]
[1764842866333,0.69,143.86,143.82,6.95290969]
[1764842866539,4.0610669,143.85,143.82,16.308864]
[1764842866946,4.7510669,143.85,143.82,16.308864]
[1764842867358,0.69,143.85,143.82,16.308864]
[1764842867858,7.6420876,143.85,143.82,16.308864]
[1764842868740,0.69,143.84,143.81,6.95346084]
[1764842869063,7.64219186,143.84,143.81,0.66]
[1764842869263,7.64219186,143.84,143.8,27.9838194]
[1764842869450,7.64219186,143.84,143.8,27.3238194]
[1764842869649,7.64219186,143.84,143.81,0.66]
[1764842870054,6.95219186,143.84,143.8,27.3238194]
[1764842870255,0.69,143.83,143.8,27.3238194]
[1764842870462,0.69,143.83,143.8,27.9838194]
[1764842870652,7.64219186,143.84,143.8,27.9838194]
[1764842872170,4.7510669,143.83,143.79,7.66]
[1764842872478,4.0610669,143.81,143.77,7.61539827]
[1764842872659,4.0610669,143.81,143.78,16.308864]
[1764842872845,0.69,143.81,143.78,16.308864]
[1764842873472,7.64380346,143.81,143.78,16.308864]
[1764842874572,7.64380346,143.81,143.77,11.67646517]
[1764842876875,7.64335716,143.82,143.78,4.7210669]
[1764842877702,7.64335716,143.82,143.78,11.01587067]
[1764842877874,7.64335716,143.82,143.78,11.67587067]
[1764842878451,4.7510669,143.81,143.77,6.95543941]
[1764842878650,4.7510669,143.81,143.76,36.79576874]
[1764842878976,0.69,143.8,143.76,36.79576874]
[1764842879481,4.0610669,143.79,143.75,14.61631559]
[1764842879656,4.0610669,143.79,143.75,15.27631559]
[1764842879863,7.64491393,143.79,143.75,19.33738249]
[1764842880576,4.0610669,143.82,143.77,4.0610669]
[1764842880784,4.7510669,143.82,143.78,0.66]
[1764842880966,0.69,143.81,143.78,0.66]
[1764842881357,0.69,143.81,143.77,4.0610669]
[1764842881557,0.69,143.81,143.77,4.7210669]
[1764842881875,7.64377168,143.81,143.78,4.7210669]
[1764842882979,7.64377168,143.81,143.78,0.66]
[1764842884172,7.64377168,143.81,143.78,7.61493488]
[1764842884379,7.64365008,143.81,143.78,7.61493488]
[1764842885354,7.64365008,143.81,143.78,0.66]
[1764842885884,7.64365008,143.81,143.77,11.67640416]
[1764842887490,7.64216907,143.84,143.8,4.0610669]
[1764842888173,0.69,143.86,143.82,4.0610669]
[1764842888380,7.6402363,143.88,143.83,4.0610669]
[1764842888676,6.94927032,143.9,143.86,4.0610669]
[1764842889305,16.308864,143.93,143.82,13.53101182]
[1764842889306,11.0113032,143.88,143.82,13.53101182]
[1764842889478,4.0610669,143.87,143.82,4.0610669]
[1764842889676,4.7510669,143.87,143.81,28.6899309]
[1764842889893,0.69,143.86,143.82,11.01393278]
[1764842890195,25.01582707,143.88,143.84,4.0610669]
[1764842890612,0.69,143.87,143.84,11.67320514]
[1764842890968,0.69,143.87,143.83,11.01351432]
[1764842891274,6.95120255,143.86,143.83,4.0610669]
[1764842891784,0.69,143.85,143.81,34.98339798]
[1764842892289,0.69,143.85,143.81,35.64339798]
[1764842892492,0.69,143.85,143.82,11.01405341]
[1764842892867,0.69,143.85,143.82,11.67405341]
[1764842893067,0.69,143.85,143.82,4.7210669]
[1764842893371,0.69,143.85,143.82,11.67393843]
[1764842894100,22.15665767,143.88,143.83,4.7210669]
[1764842894399,0.72,143.87,143.83,4.7210669]
[1764842894696,0.72,143.87,143.83,4.0610669]
[1764842895694,7.67071939,143.87,143.83,4.0610669]
[1764842896400,7.6714103,143.86,143.83,4.0610669]
[1764842899187,0.72,143.85,143.83,4.0610669]
[1764842899384,7.67071939,143.87,143.83,4.0610669]
[1764842899681,0.72,143.86,143.83,4.0610669]
[1764842900101,7.67145345,143.86,143.83,4.0610669]
[1764842900778,0.72,143.86,143.83,11.01371236]
[1764842901489,0.72,143.86,143.83,11.67371236]
[1764842901695,0.72,143.86,143.83,11.01371236]
[1764842901878,7.67046197,143.88,143.84,4.7210669]
[1764842902079,7.67046197,143.88,143.85,4.0610669]
[1764842903707,6.95046197,143.88,143.85,4.0610669]
[1764842903905,6.94994211,143.89,143.86,4.7210669]
[1764842904084,6.94965116,143.9,143.86,4.0610669]
[1764842904405,0.72,143.9,143.87,4.7210669]
[1764842906091,7.66926907,143.91,143.87,11.67174266]
[1764842906293,6.94926907,143.91,143.87,11.67174266]
[1764842906490,21.43246988,143.92,143.87,11.67174266]
[1764842906491,6.94847259,143.92,143.89,4.0610669]
[1764842906910,0.72,143.92,143.89,4.7210669]
[1764842907309,6.94801334,143.93,143.9,4.0610669]
[1764842907511,7.66801334,143.93,143.9,4.0610669]
[1764842907886,0.72,143.93,143.91,4.0610669]
[1764842908403,0.72,143.94,143.91,4.0610669]
[1764842909305,7.66751781,143.94,143.91,4.0610669]
[1764842909512,7.66751781,143.94,143.91,6.94872576]
[1764842909712,7.66753617,143.94,143.91,4.7210669]
[1764842910909,7.66753617,143.94,143.91,4.0610669]
[1764842911915,7.66753617,143.94,143.91,11.66981594]
[1764842912727,7.66651361,143.96,143.93,4.0610669]
[1764842913019,0.72,143.96,143.93,4.0610669]
[1764842913217,7.66591688,143.97,143.94,4.0610669]
[1764842913402,11.00698378,143.97,143.93,4.0610669]
[1764842913594,6.94685654,143.95,143.91,27.97867994]
[1764842913794,11.00792344,143.95,143.9,11.01018999]
[1764842914018,0.72,143.94,143.9,11.67018999]
[1764842914426,0.72,143.94,143.91,4.0610669]
[1764842914600,7.66685654,143.95,143.92,4.0610669]
[1764842914998,7.66685654,143.95,143.92,4.7210669]
[1764842917121,6.94685654,143.95,143.92,4.0610669]
[1764842917332,0.72,143.94,143.91,4.0610669]
[1764842917715,4.0610669,143.93,143.88,32.06884809]
[1764842918038,4.7810669,143.94,143.9,4.0610669]
[1764842918202,7.66782185,143.93,143.9,4.0610669]
[1764842918825,7.66782185,143.93,143.89,7.6097047]
[1764842918826,0.72,143.92,143.89,4.0610669]
[1764842919004,4.7810669,143.92,143.87,11.7210669]
[1764842919429,0.72,143.91,143.87,11.7210669]
[1764842919629,0.72,143.91,143.87,12.3810669]
[1764842919933,0.72,143.91,143.87,19.33172309]
[1764842920923,7.66920677,143.91,143.87,19.33172309]
[1764842921821,6.94920677,143.91,143.88,4.0610669]
[1764842922210,0.71,143.9,143.88,4.0610669]
[1764842922409,6.94920677,143.91,143.88,11.71114233]
[1764842922767,7.64920677,143.91,143.88,11.71114233]
[1764842924105,0.7,143.9,143.88,4.0610669]
[1764842924927,7.64863953,143.92,143.89,4.0610669]
[1764842925514,0.7,143.91,143.89,4.0610669]
[1764842925931,29.08973114,143.94,143.9,4.0610669]
[1764842925932,6.9479982,143.93,143.9,4.0610669]
[1764842926112,7.6479982,143.93,143.9,4.0610669]
[1764842926312,15.3073241,143.95,143.91,4.0610669]
[1764842926547,0.7,143.94,143.91,4.0610669]
[1764842926734,0.7,143.94,143.91,4.7410669]
[1764842927022,7.64658374,143.96,143.93,4.0610669]
[1764842927428,0.7,143.95,143.93,4.0610669]
[1764842927755,0.7,143.95,143.89,32.06845706]
[1764842927917,6.94733916,143.94,143.9,4.0610669]
[1764842928115,28.37675398,143.94,143.89,29.17987582]
[1764842928331,0.7,143.93,143.89,28.39535587]
[1764842928838,0.7,143.93,143.9,2.59654695]
[1764842929139,7.64805675,143.93,143.9,3.27654695]
[1764842931441,7.64805675,143.93,143.9,2.59654695]
[1764842932227,0.7,143.92,143.9,2.59654695]
[1764842932422,0.7,143.93,143.9,2.59654695]
[1764842935150,7.64825369,143.93,143.9,2.59654695]
[1764842940066,7.64825369,143.93,143.9,3.27654695]
[1764842940971,0.7,143.92,143.87,69.96]
[1764842941136,2.59654695,143.9,143.84,13.42531446]
[1764842941335,2.59654695,143.9,143.85,11.40649187]
[1764842941536,0.7,143.89,143.85,11.40649187]
[1764842941862,0.7,143.89,143.86,3.27654695]
[1764842943257,7.65018642,143.89,143.84,16.308864]
[1764842943462,10.24673337,143.89,143.84,3.27654695]
[1764842943658,0.7,143.88,143.84,3.27654695]
[1764842944550,25.02456962,143.89,143.85,3.27654695]
[1764842944755,23.46683809,143.9,143.88,2.59654695]
[1764842944756,6.94941252,143.9,143.88,2.59654695]
[1764842945283,24.32100416,143.91,143.88,2.59654695]
[1764842945467,25.02100416,143.91,143.88,2.59654695]
[1764842945650,0.7,143.9,143.87,2.59654695]
[1764842946358,0.7,143.9,143.86,2.59654695]
[1764842946565,0.7,143.9,143.86,3.27654695]
[1764842947358,6.94975328,143.89,143.86,3.27654695]
[1764842947861,7.64975328,143.89,143.86,3.27654695]
[1764842949239,7.64975328,143.89,143.86,0.68]
[1764842950371,7.64975328,143.89,143.85,10.22800792]
[1764842950543,6.94975328,143.89,143.84,15.76204254]
[1764842950750,2.59654695,143.86,143.83,16.308864]
[1764842951151,0.7,143.85,143.83,16.308864]
[1764842952565,7.65187961,143.85,143.83,16.308864]
[1764842953468,0.7,143.84,143.81,19.58541095]
[1764842953765,7.65187961,143.85,143.81,19.58541095]
[1764842954471,6.95187961,143.85,143.82,3.31654695]
[1764842954768,0.7,143.84,143.81,16.308864]
[1764842955144,3.29654695,143.84,143.81,16.308864]
[1764842955350,3.29654695,143.84,143.8,0.72]
[1764842955662,0.7,143.83,143.8,0.72]
[1764842956170,3.29654695,143.83,143.79,23.968864]
[1764842956365,3.29654695,143.83,143.79,17.028864]
[1764842956548,7.65313586,143.82,143.78,2.59654695]
[1764842956747,7.65313586,143.82,143.78,7.67492733]
[1764842957149,7.65313586,143.82,143.78,10.27147428]
[1764842957452,10.24968281,143.82,143.78,10.27147428]
[1764842957656,0.7,143.81,143.77,32.77880892]
[1764842957856,2.59654695,143.79,143.77,7.66]
[1764842958070,2.59654695,143.8,143.77,7.66]
[1764842958273,0.7,143.79,143.77,7.66]
[1764842958682,7.65461673,143.79,143.77,7.66]
[1764842959268,0.7,143.78,143.75,23.98529852]
[1764842959481,6.95461673,143.79,143.75,23.98529852]
[1764842959482,7.65461673,143.79,143.75,23.98529852]
[1764842959964,7.65461673,143.79,143.75,26.58184547]
[1764842961491,0.7,143.79,143.76,0.72]
[1764842961854,6.9537036,143.81,143.77,2.59654695]
[1764842962055,7.6537036,143.81,143.77,2.59654695]
[1764842962283,6.9537036,143.81,143.77,3.31654695]
[1764842962456,3.29654695,143.8,143.75,25.86184547]
[1764842962657,3.29654695,143.8,143.75,26.58184547]
[1764842962853,19.98059534,143.81,143.76,2.59654695]
[1764842963156,0.7,143.8,143.76,3.31654695]
[1764842963361,3.29654695,143.8,143.76,0.72]
[1764842963885,9.55084382,143.8,143.75,25.86184547]
[1764842964184,0.7,143.79,143.75,26.58184547]
[1764842964558,0.7,143.79,143.76,2.59654695]
[1764842965288,7.65476054,143.79,143.76,3.31654695]
[1764842966168,7.65476054,143.79,143.76,10.27249128]
[1764842966684,0.7,143.79,143.76,10.27249128]
[1764842966859,0.7,143.83,143.78,2.59654695]
[1764842967180,0.7,143.83,143.79,2.59654695]
[1764842967569,6.95273608,143.83,143.81,2.59654695]
[1764842967875,6.95273608,143.83,143.8,3.31654695]
[1764842967876,7.65273608,143.83,143.8,3.31654695]
[1764842968070,7.65273608,143.83,143.8,2.59654695]
[1764842968886,7.65273608,143.83,143.8,3.31654695]
[1764842969689,15.76588925,143.86,143.82,2.59654695]
[1764842969990,2.59654695,143.89,143.84,2.59654695]
[1764842970284,7.64993391,143.89,143.85,2.59654695]
[1764842970486,0.7,143.88,143.85,2.59654695]
[1764842971587,0.7,143.88,143.86,2.59654695]
[1764842971800,7.65068102,143.88,143.86,2.59654695]
[1764842972109,7.65068102,143.88,143.85,2.59654695]
[1764842972268,0.7,143.87,143.85,2.59654695]
[1764842972794,0.7,143.87,143.84,6.95198794]
[1764842972986,0.7,143.87,143.85,2.59654695]
[1764842974199,7.65073438,143.87,143.83,17.028864]
[1764842974376,7.65073438,143.87,143.82,2.59654695]
[1764842974377,10.24728133,143.87,143.82,2.59654695]
[1764842974576,0.7,143.86,143.82,2.59654695]
[1764842975097,6.95044727,143.88,143.85,2.59654695]
[1764842975331,0.7,143.89,143.86,2.59654695]
[1764842976290,0.7,143.89,143.84,0.72]
[1764842976291,7.64977512,143.89,143.87,2.59654695]
[1764842976492,7.64977512,143.89,143.86,2.59654695]
[1764842976667,0.7,143.88,143.86,2.59654695]
[1764842976866,0.7,143.88,143.85,6.95138882]
[1764842976867,0.7,143.88,143.85,9.54793577]
[1764842977984,7.6502673,143.88,143.85,9.54793577]
[1764842979898,0.7,143.88,143.85,9.54793577]
[1764842982783,6.94943552,143.9,143.87,2.59654695]
[1764842983001,6.94881518,143.91,143.88,2.59654695]
[1764842983204,7.59881518,143.91,143.88,2.59654695]
[1764842984307,6.94830461,143.92,143.88,2.59654695]
[1764842984614,7.5980277,143.93,143.89,3.31654695]
[1764842984778,0.65,143.92,143.89,3.31654695]
[1764842986083,7.5983427,143.92,143.88,6.95006791]
[1764842986282,7.5983427,143.92,143.89,3.29654695]
[1764842986895,7.5983427,143.92,143.89,2.59654695]
[1764842988111,7.66801957,143.93,143.89,10.24617137]
[1764842988610,7.66801957,143.93,143.89,11.7063866]
[1764842988793,0.72,143.92,143.89,11.7063866]
[1764842989607,7.66834047,143.92,143.88,28.01565743]
[1764842989906,7.66834047,143.92,143.89,23.25858981]
[1764842990103,0.72,143.92,143.89,28.01535199]
[1764842991904,6.94801642,143.93,143.9,4.75676218]
[1764842992605,7.66801642,143.93,143.9,4.75676218]
[1764842992816,6.94801642,143.93,143.9,4.05676218]
[1764842993011,24.31623503,143.94,143.91,0.7]
[1764842993215,25.03623503,143.94,143.9,4.05676218]
[1764842993404,6.94733916,143.94,143.91,4.05676218]
[1764842993604,7.66733916,143.94,143.91,4.05676218]
[1764842994699,6.94733916,143.94,143.91,4.05676218]
[1764842994900,0.72,143.93,143.91,4.05676218]
[1764842995304,0.72,143.94,143.91,11.00550143]
[1764842995618,7.66747331,143.94,143.91,4.05676218]
[1764842995916,7.66747331,143.94,143.91,11.00553509]
[1764842996322,7.66747331,143.94,143.91,11.70553509]
[1764842996619,0.72,143.96,143.92,4.75676218]
[1764842996821,6.94590252,143.97,143.93,4.05676218]
[1764842997025,6.94590252,143.97,143.93,4.75676218]
[1764842997328,0.72,143.96,143.93,7.64767589]
[1764842997622,0.72,143.96,143.93,11.70443807]
[1764842999217,0.72,143.96,143.93,11.00443807]
[1764843000923,7.66639582,143.96,143.93,6.94767589]
[1764843001422,11.723158,143.96,143.91,4.05676218]
[1764843001592,0.72,143.95,143.91,4.05676218]
[1764843001798,0.72,143.95,143.91,4.75676218]
[1764843002517,7.66716633,143.95,143.91,11.00532862]
[1764843002731,11.72392851,143.95,143.91,6.94856644]
[1764843003032,0.72,143.94,143.91,6.94856644]
[1764843003824,0.72,143.94,143.91,11.70532862]
[1764843004129,4.15676218,143.98,143.92,9.50994492]
[1764843004320,4.77676218,143.97,143.93,4.05676218]
[1764843004518,0.72,143.96,143.93,4.05676218]
[1764843004720,0.72,143.96,143.92,4.75676218]
[1764843004915,0.72,143.96,143.9,62.3]
[1764843004916,4.05676218,143.94,143.9,62.3]
[1764843005123,4.05676218,143.94,143.9,4.05676218]
[1764843005351,0.72,143.96,143.9,4.05676218]
[1764843005352,0.72,143.93,143.9,4.75676218]
[1764843005518,0.72,143.93,143.9,4.05676218]
[1764843006027,0.72,143.93,143.9,11.00590582]
[1764843006520,0.72,143.93,143.9,6.94914364]
[1764843006724,7.66782475,143.93,143.9,4.05676218]
[1764843006923,7.66782475,143.93,143.89,27.31517227]
[1764843007234,0.72,143.92,143.9,6.94906719]
[1764843007527,4.05676218,143.91,143.87,6.9502886]
[1764843007841,4.77676218,143.92,143.87,11.00705078]
[1764843008000,0.72,143.91,143.87,11.70705078]
[1764843010235,7.66880307,143.91,143.87,11.70705078]
[1764843010436,0.72,143.91,143.87,11.70705078]
[1764843010648,37.17334916,143.96,143.88,4.75676218]
[1764843010649,4.05676218,143.94,143.88,4.75676218]
[1764843010935,0.72,143.95,143.91,4.05676218]
[1764843011109,7.66719435,143.95,143.91,20.36562618]
[1764843011312,7.66719435,143.95,143.91,21.06562618]
[1764843011712,0.72,143.94,143.91,20.36562618]
[1764843011947,0.72,143.94,143.91,21.06562618]
[1764843012144,0.72,143.94,143.91,28.01432214]
[1764843013239,4.05676218,143.93,143.88,12.8667071]
[1764843013443,4.05676218,143.93,143.89,11.00636794]
[1764843013634,0.69,143.92,143.89,11.00636794]
[1764843014143,0.69,143.92,143.89,4.05676218]
[1764843014943,7.63842384,143.92,143.88,27.31563813]
[1764843015415,0.69,143.91,143.88,27.31563813]
[1764843016227,0.69,143.91,143.88,16.308864]
[1764843016228,6.94927032,143.9,143.88,16.308864]
[1764843016734,7.63927032,143.9,143.88,20.36562618]
[1764843016926,0.69,143.9,143.88,20.36562618]
[1764843017132,6.94897187,143.91,143.88,27.31577329]
[1764843017442,7.63897187,143.91,143.88,20.36562618]
[1764843018150,6.94897187,143.91,143.88,16.308864]
[1764843018316,0.69,143.9,143.88,27.31582459]
[1764843018517,0.69,143.9,143.88,20.36562618]
[1764843020148,0.69,143.9,143.88,27.31585505]
[1764843020320,7.63851645,143.92,143.88,27.31585505]
[1764843020520,17.36774239,143.95,143.91,4.05676218]
[1764843020743,0.69,143.96,143.93,4.05676218]
[1764843020945,4.15676218,143.98,143.93,4.05676218]
[1764843020946,0.69,143.95,143.93,4.05676218]
[1764843021123,0.69,143.97,143.94,4.05676218]
[1764843022542,7.63606502,143.97,143.94,4.05676218]
[1764843022733,0.69,143.97,143.95,4.05676218]
[1764843030726,0.1,143.98,143.96,4.71676218]
[1764843030926,0.1,143.98,143.97,4.05676218]
[1764843031147,0.1,143.98,143.97,4.71676218]
[1764843031348,0.1,143.98,143.97,21.02562618]
[1764843031551,0.1,143.99,143.97,33.89233328]
[1764843031753,0.1,143.99,143.98,8.77352436]
[1764843032851,0.1,143.99,143.98,15.71893344]
[1764843033049,0.1,143.99,143.98,24.52887836]
[1764843033926,0.1,143.99,143.98,16.415354]
[1764843034250,0.1,143.99,143.98,27.97103526]
[1764843034551,0.1,143.99,143.98,20.36562618]
[1764843035842,0.1,143.99,143.98,27.31103526]
[1764843036859,0.79,143.99,143.97,4.05676218]
[1764843037056,0.79,143.99,143.97,11.00260955]
[1764843037434,0.79,143.99,143.98,4.05676218]
[1764843038754,0.79,143.99,143.97,4.05676218]
[1764843039959,0.79,143.99,143.98,4.05676218]
[1764843039960,0.1,143.99,143.98,4.05676218]
[1764843041260,0.1,143.99,143.98,11.00217126]
[1764843041757,0.1,143.99,143.98,4.05676218]
[1764843042663,0.1,143.99,143.98,11.00217126]
[1764843043564,0.82,143.99,143.98,4.05676218]
[1764843046360,7.76504641,143.99,143.97,4.05676218]
[1764843046750,0.65,143.98,143.97,4.05676218]
[1764843048071,7.04504641,143.99,143.97,4.05676218]
[1764843048370,7.69504641,143.99,143.97,2.59363565]
[1764843048570,0.65,143.98,143.97,2.59363565]
[1764843048738,0.65,143.98,143.96,26.56249965]
[1764843049251,7.5955466,143.98,143.96,26.56249965]
[1764843057073,0.1,143.99,143.97,2.59363565]
[1764843057370,0.1,143.99,143.97,3.26363565]
[1764843057671,0.75,143.99,143.97,2.59363565]
[1764843058078,2.59363565,143.98,143.92,8.80994492]
[1764843058369,2.59363565,143.98,143.86,33.09009042]
[1764843058370,2.59363565,143.93,143.86,2.59363565]
[1764843058548,2.59363565,143.91,143.87,3.26363565]
[1764843058747,2.59363565,143.93,143.88,2.59363565]
[1764843058956,2.59363565,143.93,143.89,2.59363565]
[1764843059162,3.15363565,143.93,143.89,3.26363565]
[1764843059674,3.15363565,143.93,143.89,0.67]
[1764843059847,6.94830461,143.92,143.89,0.67]
[1764843060169,2.59363565,143.9,143.85,0.67]
[1764843060367,2.59363565,143.89,143.85,3.26363565]
[1764843060878,2.59363565,143.9,143.86,0.67]
[1764843061253,6.94830461,143.92,143.88,2.59363565]
[1764843061558,2.59363565,143.9,143.86,0.67]
[1764843061763,2.59363565,143.9,143.86,3.26363565]
[1764843061961,6.94890526,143.91,143.86,10.21456881]
[1764843062167,2.59363565,143.93,143.89,2.59363565]
[1764843062460,19.95987384,143.96,143.91,2.59363565]
[1764843062856,20.51987384,143.96,143.91,3.26363565]
[1764843063576,17.92388371,143.98,143.93,2.59363565]
[1764843063877,17.92388371,143.98,143.92,0.67]
[1764843063878,9.53952715,143.97,143.92,3.26363565]
[1764843064257,10.09952715,143.97,143.93,0.67]
[1764843064781,27.46425591,143.97,143.93,0.67]
[1764843065254,6.94685654,143.95,143.92,2.59363565]
[1764843065455,6.94685654,143.95,143.92,3.26363565]
[1764843065868,6.94685654,143.95,143.93,0.67]
[1764843066579,3.15363565,143.94,143.89,16.978864]
[1764843066777,2.59363565,143.94,143.9,0.67]
[1764843066973,3.15363565,143.94,143.9,0.67]
[1764843067168,3.15363565,143.94,143.89,2.59363565]
[1764843067376,6.94782185,143.93,143.9,0.67]
[1764843068394,3.15363565,143.92,143.88,0.67]
[1764843068568,2.59363565,143.91,143.86,2.59363565]
[1764843068904,2.59363565,143.91,143.86,3.26363565]
[1764843069187,3.15363565,143.91,143.87,0.67]
[1764843069371,6.94927032,143.9,143.87,0.67]
[1764843069878,9.54290597,143.9,143.87,0.67]
[1764843070470,9.54290597,143.9,143.84,30.90086012]
[1764843070673,7.50927032,143.9,143.84,31.57086012]
[1764843070885,2.59363565,143.89,143.84,30.90086012]
[1764843071184,2.59363565,143.89,143.85,0.67]
[1764843071683,9.54365742,143.89,143.85,0.67]
[1764843071883,9.54293789,143.9,143.85,10.21531213]
[1764843072067,2.59363565,143.92,143.87,2.59363565]
[1764843072470,2.59363565,143.92,143.88,0.67]
[1764843072786,9.54194026,143.92,143.88,0.67]
[1764843075484,2.59363565,143.89,143.86,0.67]
[1764843075690,9.54366402,143.89,143.86,0.67]
[1764843075897,9.54366402,143.89,143.86,7.62114662]
[1764843076078,9.54304588,143.9,143.86,0.67]
[1764843076279,9.54304588,143.9,143.87,0.67]
[1764843078140,0.56,143.89,143.84,7.64]
[1764843078265,2.59363565,143.86,143.84,7.64]
[1764843078663,2.59363565,143.86,143.84,8.31]
[1764843080591,9.54493584,143.86,143.84,8.31]
[1764843080803,10.10493584,143.86,143.81,3.46363565]
[1764843081096,9.54493584,143.86,143.82,0.67]
[1764843081394,34.74921049,143.89,143.82,3.26363565]
[1764843081395,7.50975328,143.89,143.82,3.26363565]
[1764843081597,2.59363565,143.88,143.83,2.59363565]
[1764843081774,9.54338893,143.89,143.84,2.59363565]
[1764843082099,9.54338893,143.89,143.84,3.26363565]
[1764843082284,9.54338893,143.89,143.85,0.67]
[1764843082688,6.94975328,143.89,143.85,0.67]
[1764843082903,2.59363565,143.92,143.87,2.59363565]
[1764843083201,19.46249965,143.93,143.87,2.59363565]
[1764843083374,19.46249965,143.93,143.88,0.67]
[1764843083572,17.36847383,143.94,143.9,2.59363565]
[1764843083975,0.56,143.95,143.91,0.67]
[1764843084170,6.94685654,143.95,143.91,0.67]
[1764843084377,10.10049219,143.95,143.91,0.67]
[1764843084903,2.59363565,143.94,143.91,0.67]
[1764843086502,6.94782185,143.93,143.91,0.67]
[1764843087942,6.94753034,143.94,143.91,0.67]
[1764843088103,9.54116599,143.94,143.91,0.67]
[1764843088306,16.308864,143.97,143.93,2.59363565]
[1764843088307,6.94604837,143.97,143.93,2.59363565]
[1764843088479,6.94604837,143.97,143.94,0.67]
[1764843089307,24.31077713,143.97,143.89,17.37389702]
[1764843089483,27.46441278,143.97,143.92,3.26363565]
[1764843089885,27.46441278,143.97,143.92,2.59363565]
[1764843090080,27.46441278,143.97,143.93,0.67]
[1764843091712,26.90441278,143.97,143.93,0.67]
[1764843092076,27.46441278,143.97,143.93,0.67]
[1764843092493,2.59363565,143.96,143.93,0.67]
[1764843093393,6.94604837,143.97,143.93,10.2114421]
[1764843093786,6.94604837,143.97,143.94,0.67]
[1764843093986,7.50604837,143.97,143.92,6.94799008]
[1764843094181,7.50604837,143.97,143.93,0.67]
[1764843094182,10.09968402,143.97,143.93,0.67]
[1764843094378,9.53968402,143.97,143.93,0.67]
[1764843095309,27.46441278,143.97,143.93,0.67]
[1764843095707,6.94604837,143.97,143.93,3.26363565]